bitfinex/quotes_BTCUSD_20241117
["timestamp","ask_amount","ask_price","bid_price","bid_amount"]
[1731842342323,0.110238,90713.0,90700.0,0.110253]
[1731842342546,0.110243,90709.0,90700.0,0.110253]
[1731842342762,0.110244,90708.0,90700.0,0.110253]
[1731842343246,0.220475,90714.0,90700.0,0.120253]
[1731842343247,0.110241,90710.0,90700.0,0.120253]
[1731842343682,0.220475,90714.0,90700.0,0.110253]
[1731842343916,0.27574202,90717.0,90700.0,0.110253]
[1731842344136,0.16550902,90717.0,90700.0,0.11245781]
[1731842344396,0.16550902,90717.0,90700.0,0.110253]
[1731842344635,0.16550902,90716.0,90700.0,0.22652021]
[1731842344861,0.16550902,90716.0,90700.0,0.35331555]
[1731842345380,0.16550902,90716.0,90700.0,0.239253]
[1731842345636,0.110236,90714.0,90700.0,0.234253]
[1731842345867,0.38597902,90716.0,90700.0,0.234253]
[1731842346098,0.38597902,90716.0,90700.0,0.110253]
[1731842346347,0.16550902,90715.0,90700.0,0.110253]
[1731842346597,0.16550902,90715.0,90700.0,0.22931555]
[1731842347068,0.16550902,90715.0,90700.0,0.23352013]
[1731842347292,0.16550902,90715.0,90700.0,0.35752013]
[1731842347518,0.16550902,90715.0,90700.0,0.35331555]
[1731842348029,0.15836542,90715.0,90714.0,0.110236]
[1731842348549,0.15836542,90715.0,90706.0,0.22049]
[1731842348797,0.15836542,90715.0,90700.0,0.124]
[1731842348798,0.220457,90721.0,90700.0,0.124]
[1731842349031,0.0008562,90723.0,90701.0,0.220504]
[1731842349032,0.110229,90720.0,90701.0,0.220504]
[1731842349240,0.110229,90720.0,90713.0,0.110237]
[1731842349499,0.110231,90719.0,90714.0,0.110236]
[1731842349720,0.0008562,90723.0,90717.0,0.110232]
[1731842350164,0.0008562,90723.0,90711.0,0.22048]
[1731842350412,0.0008562,90723.0,90712.0,0.00220451]
[1731842350651,0.0008562,90723.0,90722.0,0.110226]
[1731842351857,0.0008562,90723.0,90722.0,0.190326]
[1731842352340,0.0008562,90723.0,90722.0,0.22667436]
[1731842353468,0.0008562,90723.0,90722.0,0.22887846]
[1731842353707,0.0008562,90723.0,90722.0,0.22667436]
[1731842354443,0.0008562,90723.0,90722.0,0.24895878]
[1731842354939,0.0008562,90723.0,90722.0,0.24395878]
[1731842355400,0.0008562,90723.0,90710.0,0.002]
[1731842355401,0.0008562,90723.0,90714.0,0.220472]
[1731842355621,0.0008562,90723.0,90722.0,0.110226]
[1731842356073,0.0008562,90723.0,90722.0,0.11243018]
[1731842356326,0.0008562,90723.0,90722.0,0.110226]
[1731842356793,0.0008562,90723.0,90721.0,0.110227]
[1731842357017,0.0008562,90723.0,90717.0,0.220465]
[1731842357237,0.0008562,90723.0,90722.0,0.110226]
[1731842357678,0.0008562,90723.0,90722.0,0.11243026]
[1731842358615,0.0008562,90723.0,90722.0,0.110226]
[1731842358853,0.0008562,90723.0,90715.0,0.22047]
[1731842358854,0.0008562,90723.0,90719.0,0.110229]
[1731842359080,0.0008562,90723.0,90722.0,0.110226]
[1731842361196,0.0008562,90723.0,90722.0,0.167226]
[1731842361420,0.0008562,90723.0,90722.0,0.245926]
[1731842361675,0.0008562,90723.0,90722.0,0.24813011]
[1731842361950,0.0008562,90723.0,90722.0,0.245926]
[1731842362389,0.0008562,90723.0,90722.0,0.243926]
[1731842363090,0.15836522,90735.0,90734.0,0.110212]
[1731842363537,0.16722162,90746.0,90742.0,0.110201]
[1731842364033,0.16722162,90746.0,90743.0,0.110201]
[1731842364034,0.0017126,90746.0,90743.0,0.110201]
[1731842364739,0.0017126,90746.0,90729.0,0.005]
[1731842364740,0.0017126,90746.0,90736.0,0.110209]
[1731842364979,0.0017126,90746.0,90733.0,0.16550902]
[1731842365236,0.0017126,90746.0,90728.0,0.02170234]
[1731842365479,0.0017126,90746.0,90726.0,0.04151675]
[1731842365713,0.0017126,90746.0,90730.0,0.110217]
[1731842365714,0.110204,90741.0,90730.0,0.110217]
[1731842365955,0.110209,90737.0,90719.0,0.22046]
[1731842366180,0.0017126,90746.0,90712.0,0.1]
[1731842366181,0.1119128,90744.0,90743.0,0.1]
[1731842367558,0.1119128,90744.0,90743.0,0.210201]
[1731842367559,0.0017128,90744.0,90743.0,0.210201]
[1731842368469,0.0017128,90744.0,90743.0,0.21240483]
[1731842368698,0.0017128,90744.0,90743.0,0.21240464]
[1731842369639,0.0017128,90744.0,90743.0,0.210201]
[1731842371208,0.0017128,90744.0,90743.0,0.21740464]
[1731842371471,0.0017128,90744.0,90743.0,0.215201]
[1731842371943,0.0017128,90744.0,90743.0,0.210201]
[1731842373104,0.0017128,90744.0,90743.0,0.1]
[1731842374043,0.0017128,90744.0,90743.0,0.210201]
[1731842374261,0.0017128,90744.0,90743.0,0.1]
[1731842374507,0.1119128,90744.0,90743.0,0.1]
[1731842374965,0.1119128,90744.0,90723.0,0.005]
[1731842374966,0.0017128,90744.0,90726.0,0.03580386]
[1731842375213,0.0017128,90744.0,90733.0,0.27572102]
[1731842375214,0.110205,90740.0,90733.0,0.27572102]
[1731842375466,0.110205,90740.0,90733.0,0.110212]
[1731842375702,0.110207,90739.0,90733.0,0.110212]
[1731842376398,0.2221128,90744.0,90733.0,0.110212]
[1731842376609,0.110207,90738.0,90733.0,0.110212]
[1731842377311,0.0017128,90744.0,90725.0,0.03502298]
[1731842377537,0.0017128,90744.0,90743.0,0.110201]
[1731842377986,0.110193,90750.0,90744.0,0.110199]
[1731842378225,0.110193,90750.0,90742.0,0.110201]
[1731842378452,0.222097,90752.0,90740.0,0.220409]
[1731842378673,0.110194,90749.0,90742.0,0.110201]
[1731842378896,0.110197,90747.0,90740.0,0.110204]
[1731842379107,0.110197,90747.0,90741.0,0.110203]
[1731842379348,0.110197,90747.0,90739.0,0.220412]
[1731842379566,0.110197,90747.0,90741.0,0.110202]
[1731842380056,0.110197,90747.0,90730.0,0.220434]
[1731842380269,0.110197,90747.0,90741.0,0.110202]
[1731842380486,0.222097,90752.0,90739.0,0.220411]
[1731842380704,0.222097,90752.0,90728.0,0.17050902]
[1731842380705,0.110194,90749.0,90742.0,0.110201]
[1731842380914,0.110194,90749.0,90731.0,0.220431]
[1731842381136,0.110193,90750.0,90743.0,0.1102]
[1731842381366,0.110193,90750.0,90745.0,0.110198]
[1731842381580,0.111905,90752.0,90746.0,0.110196]
[1731842381809,0.110194,90749.0,90740.0,0.220407]
[1731842382045,0.110194,90749.0,90743.0,0.1102]
[1731842382259,0.110194,90749.0,90741.0,0.220407]
[1731842382260,0.110194,90749.0,90744.0,0.110199]
[1731842382701,0.220385,90750.0,90737.0,0.220416]
[1731842382947,0.110193,90750.0,90743.0,0.1102]
[1731842383203,0.110194,90749.0,90743.0,0.1102]
[1731842383450,0.110199,90745.0,90740.0,0.110204]
[1731842383685,0.110201,90743.0,90738.0,0.110207]
[1731842383902,0.0017122,90747.0,90737.0,0.04407]
[1731842384351,0.1102,90744.0,90738.0,0.110207]
[1731842384569,0.110197,90746.0,90738.0,0.110206]
[1731842384790,0.0017122,90747.0,90738.0,0.220414]
[1731842385072,0.0017122,90747.0,90743.0,0.1102]
[1731842386248,0.0017122,90747.0,90740.0,0.220409]
[1731842386469,0.0017122,90747.0,90742.0,0.110201]
[1731842386687,0.0017122,90747.0,90741.0,0.220407]
[1731842386688,0.0017122,90747.0,90743.0,0.110201]
[1731842387625,0.0017122,90747.0,90735.0,0.03606471]
[1731842387626,0.220407,90741.0,90735.0,0.0008561]
[1731842387856,0.110209,90736.0,90735.0,0.0008561]
[1731842393193,0.102209,90736.0,90735.0,0.0008561]
[1731842396321,0.0017122,90744.0,90735.0,0.0008561]
[1731842396541,0.16722122,90744.0,90735.0,0.0008561]
[1731842396764,0.16722122,90744.0,90735.0,0.1110671]
[1731842396765,0.110204,90741.0,90735.0,0.1110671]
[1731842396986,0.0017122,90744.0,90743.0,0.110201]
[1731842397198,0.0017122,90744.0,90735.0,0.0008561]
[1731842397433,0.0017122,90744.0,90742.0,0.110202]
[1731842397668,0.0017122,90744.0,90735.0,0.0008561]
[1731842397915,0.0017122,90744.0,90738.0,0.220414]
[1731842398149,0.0017122,90744.0,90735.0,0.0008561]
[1731842398395,0.0017122,90744.0,90740.0,0.110204]
[1731842399095,0.0017122,90744.0,90735.0,0.0008561]
[1731842399396,0.0017122,90744.0,90742.0,0.110202]
[1731842399415,0.0017122,90744.0,90743.0,0.110201]
[1731842399642,0.0017122,90744.0,90737.0,0.220417]
[1731842399879,0.0017122,90744.0,90740.0,0.110204]
[1731842400086,0.0017122,90744.0,90737.0,0.220417]
[1731842400314,0.0017122,90744.0,90736.0,0.330628]
[1731842400525,0.0017122,90744.0,90735.0,0.0008561]
[1731842400725,0.110205,90740.0,90735.0,0.0008561]
[1731842401305,0.220402,90743.0,90735.0,0.0008561]
[1731842401726,0.110206,90739.0,90735.0,0.0008561]
[1731842402581,0.110206,90739.0,90728.0,0.005]
[1731842402980,0.110207,90738.0,90727.0,0.220441]
[1731842403407,0.110207,90738.0,90732.0,0.110213]
[1731842403607,0.110207,90738.0,90733.0,0.110212]
[1731842403817,0.220407,90741.0,90730.0,0.220434]
[1731842404006,0.110206,90739.0,90731.0,0.110215]
[1731842404207,0.110207,90738.0,90732.0,0.110214]
[1731842404478,0.110207,90738.0,90728.0,0.220439]
[1731842404479,0.220407,90741.0,90728.0,0.220439]
[1731842404750,0.220407,90741.0,90733.0,0.110213]
[1731842404963,0.220407,90741.0,90727.0,0.005]
[1731842404964,0.0017122,90744.0,90729.0,0.220436]
[1731842405096,0.0017122,90744.0,90734.0,0.110212]
[1731842405097,0.110207,90739.0,90734.0,0.110212]
[1731842405509,0.220402,90743.0,90729.0,0.220436]
[1731842405719,0.110206,90740.0,90735.0,0.11021]
[1731842405933,0.110206,90739.0,90733.0,0.110212]
[1731842406144,0.220405,90742.0,90731.0,0.220431]
[1731842406356,0.110206,90739.0,90733.0,0.110212]
[1731842406578,0.110206,90739.0,90732.0,0.110214]
[1731842406840,0.110206,90739.0,90733.0,0.110212]
[1731842407001,0.110206,90739.0,90729.0,0.220436]
[1731842407002,0.110206,90739.0,90734.0,0.110211]
[1731842407987,0.102205,90740.0,90732.0,0.220429]
[1731842408408,0.0017122,90744.0,90735.0,0.11021]
[1731842408619,0.220402,90743.0,90735.0,0.11021]
[1731842408835,0.110205,90740.0,90735.0,0.11021]
[1731842409044,0.0017122,90744.0,90728.0,0.220436]
[1731842409259,0.110204,90741.0,90736.0,0.110209]
[1731842409684,0.0017122,90744.0,90740.0,0.220409]
[1731842409927,0.0017122,90744.0,90743.0,0.110201]
[1731842410136,0.0017122,90744.0,90743.0,0.11240457]
[1731842410354,0.0017122,90744.0,90743.0,0.110201]
[1731842410838,0.0017122,90744.0,90743.0,0.23146715]
[1731842411047,0.0017122,90744.0,90743.0,0.36206715]
[1731842411282,0.0017122,90744.0,90743.0,0.46186355]
[1731842411704,0.0017122,90744.0,90743.0,0.97538833]
[1731842411944,0.0017122,90744.0,90743.0,0.82693878]
[1731842412166,0.0017122,90744.0,90743.0,0.86272861]
[1731842412394,0.0017122,90744.0,90743.0,0.68197026]
[1731842412628,0.0017122,90744.0,90743.0,1.09650766]
[1731842413049,0.0017122,90744.0,90743.0,0.86252172]
[1731842413279,0.001713,90759.0,90758.0,0.005]
[1731842413515,0.001713,90759.0,90758.0,0.25108615]
[1731842413743,0.001713,90759.0,90758.0,0.46014869]
[1731842413948,0.000141,90764.0,90763.0,0.120177]
[1731842414164,0.000141,90764.0,90763.0,0.23123955]
[1731842415324,0.000141,90764.0,90763.0,0.26729233]
[1731842415566,0.000141,90764.0,90763.0,0.28895907]
[1731842415780,0.000141,90764.0,90763.0,0.25290629]
[1731842417368,0.000141,90764.0,90763.0,0.28878447]
[1731842418545,0.000141,90764.0,90763.0,0.28678447]
[1731842418977,0.000141,90764.0,90763.0,0.29098739]
[1731842419198,0.000141,90764.0,90763.0,0.41498739]
[1731842419411,0.000141,90764.0,90763.0,0.41278447]
[1731842419925,0.000141,90764.0,90763.0,0.51278447]
[1731842420761,0.0008563,90780.0,90776.0,0.115161]
[1731842420970,0.0008563,90780.0,90776.0,0.22922355]
[1731842421441,0.0008563,90780.0,90776.0,0.10906255]
[1731842421656,0.0008563,90780.0,90776.0,0.21922355]
[1731842423072,0.0008563,90780.0,90776.0,0.110161]
[1731842423288,0.0008563,90780.0,90763.0,0.24937874]
[1731842423289,0.16350452,90794.0,90763.0,0.24937874]
[1731842423491,0.16350452,90794.0,90767.0,0.16550902]
[1731842423703,0.16350452,90794.0,90789.0,0.110145]
[1731842423917,0.220281,90793.0,90784.0,0.110151]
[1731842424132,0.005,90798.0,90776.0,0.1]
[1731842424133,0.110148,90787.0,90778.0,0.220317]
[1731842424369,0.110149,90786.0,90778.0,0.220317]
[1731842424587,0.220286,90791.0,90779.0,0.16550902]
[1731842424793,0.110146,90788.0,90780.0,0.220312]
[1731842425027,0.110146,90788.0,90781.0,0.110154]
[1731842425267,0.005,90797.0,90776.0,0.1]
[1731842425480,0.005,90797.0,90778.0,0.0357094]
[1731842425711,0.005,90797.0,90789.0,0.220289]
[1731842425958,0.115136,90797.0,90790.0,0.110143]
[1731842426220,0.005,90797.0,90777.0,0.16550902]
[1731842426407,0.005,90793.0,90777.0,0.16550902]
[1731842426629,0.110145,90789.0,90779.0,0.110157]
[1731842426867,0.005,90793.0,90782.0,0.110153]
[1731842427072,0.005,90793.0,90778.0,0.16550902]
[1731842427073,0.005,90793.0,90779.0,0.110157]
[1731842427287,0.220288,90790.0,90780.0,0.120155]
[1731842427530,0.110149,90786.0,90780.0,0.120155]
[1731842427995,0.220286,90791.0,90782.0,0.110153]
[1731842428471,0.005,90797.0,90780.0,0.01]
[1731842428685,0.005,90797.0,90783.0,0.00220283]
[1731842429169,0.005,90798.0,90784.0,0.220303]
[1731842429408,0.005,90798.0,90797.0,0.110135]
[1731842429630,0.0003777,90800.0,90779.0,0.12209671]
[1731842429631,0.0003777,90800.0,90799.0,0.110133]
[1731842430975,0.005,90799.0,90794.0,0.110138]
[1731842431221,0.1105097,90800.0,90781.0,0.1]
[1731842431222,0.005,90797.0,90781.0,0.1]
[1731842431480,0.005,90797.0,90793.0,0.22028]
[1731842431697,0.005,90797.0,90789.0,0.220289]
[1731842431981,0.005,90797.0,90768.0,0.002]
[1731842431982,0.120138,90795.0,90794.0,0.00346099]
[1731842432187,0.11906255,90795.0,90785.0,0.16550902]
[1731842432412,0.110147,90788.0,90785.0,0.16550902]
[1731842432638,0.225281,90793.0,90785.0,0.16550902]
[1731842432639,0.110149,90786.0,90785.0,0.16550902]
[1731842432910,0.220287,90791.0,90777.0,0.1]
[1731842433120,0.005,90792.0,90777.0,0.1]
[1731842433335,0.110151,90784.0,90778.0,0.110158]
[1731842433579,0.220286,90791.0,90779.0,0.110156]
[1731842433803,0.110151,90785.0,90779.0,0.110156]
[1731842434014,0.110151,90785.0,90780.0,0.110156]
[1731842434445,0.330436,90789.0,90778.0,0.110157]
[1731842434635,0.330436,90789.0,90777.0,0.12255184]
[1731842434636,0.220288,90790.0,90779.0,0.110156]
[1731842434908,1.0108679,90903.0,90779.0,0.110156]
[1731842434909,0.005,90799.0,90792.0,0.110141]
[1731842435101,0.0816,90803.0,90792.0,0.110141]
[1731842435102,0.005,90793.0,90792.0,0.110141]
[1731842435382,0.005,90793.0,90780.0,0.220312]
[1731842435628,0.005,90793.0,90790.0,0.110143]
[1731842435839,0.005,90793.0,90784.0,0.220303]
[1731842436051,0.110137,90796.0,90782.0,0.16550902]
[1731842436052,0.005,90796.0,90793.0,0.110139]
[1731842436277,0.110135,90798.0,90793.0,0.110139]
[1731842436278,0.005,90797.0,90793.0,0.110139]
[1731842436712,0.005,90797.0,90791.0,0.220285]
[1731842436911,0.005,90797.0,90793.0,0.110139]
[1731842437174,0.005,90798.0,90789.0,0.220291]
[1731842437383,0.1113667,90800.0,90794.0,0.110138]
[1731842437901,0.1113667,90800.0,90793.0,0.110139]
[1731842438119,0.005,90799.0,90794.0,0.110138]
[1731842438351,0.005,90799.0,90782.0,0.16550902]
[1731842438581,0.005,90799.0,90794.0,0.120138]
[1731842439033,0.0816,90803.0,90798.0,0.110133]
[1731842439456,0.0816,90803.0,90799.0,0.110132]
[1731842439671,0.0816,90803.0,90800.0,0.110131]
[1731842439911,0.0816,90803.0,90796.0,0.220274]
[1731842440135,0.0816,90803.0,90802.0,0.110129]
[1731842441906,0.0816,90803.0,90802.0,0.11382258]
[1731842442127,0.0816,90803.0,90802.0,0.00369358]
[1731842442556,0.0816,90803.0,90801.0,0.11013]
[1731842442769,0.0816,90803.0,90802.0,0.00369358]
[1731842442982,0.0816,90803.0,90802.0,0.11382258]
[1731842443431,0.0816,90803.0,90802.0,0.00369358]
[1731842443659,0.191728,90803.0,90802.0,0.00369358]
[1731842443910,0.0816,90803.0,90802.0,0.00369358]
[1731842444155,0.0816,90803.0,90794.0,0.04660359]
[1731842444402,0.0816,90803.0,90795.0,0.16550902]
[1731842444607,0.005,90805.0,90804.0,0.110127]
[1731842444823,0.005,90805.0,90802.0,0.220257]
[1731842445030,0.005,90805.0,90804.0,0.11382058]
[1731842445208,0.005,90805.0,90804.0,0.110127]
[1731842445472,0.005,90805.0,90804.0,0.11382058]
[1731842445675,0.005,90805.0,90804.0,0.00369358]
[1731842446094,0.005,90805.0,90795.0,0.220276]
[1731842446310,0.005,90805.0,90804.0,0.00369358]
[1731842446517,0.005,90805.0,90796.0,0.220274]
[1731842446775,0.005,90805.0,90804.0,0.00369358]
[1731842446980,0.005,90805.0,90804.0,0.00368978]
[1731842447205,0.005,90805.0,90801.0,0.11013]
[1731842447419,0.005,90805.0,90804.0,0.00368978]
[1731842447635,0.005,90805.0,90796.0,0.220274]
[1731842447636,0.005,90805.0,90798.0,0.220269]
[1731842447851,0.005,90806.0,90795.0,0.26550902]
[1731842448086,0.005,90806.0,90801.0,0.11013]
[1731842448331,0.005,90806.0,90796.0,0.220274]
[1731842448567,0.005,90806.0,90795.0,0.26550902]
[1731842448568,0.005,90799.0,90795.0,0.1]
[1731842448776,0.110134,90798.0,90797.0,0.16550902]
[1731842449015,0.005,90799.0,90795.0,0.1]
[1731842449242,0.110137,90796.0,90795.0,0.1]
[1731842449699,0.220269,90798.0,90795.0,0.1]
[1731842449953,0.110137,90796.0,90795.0,0.1]
[1731842450474,0.220257,90803.0,90795.0,0.1]
[1731842450700,0.10906255,90805.0,90795.0,0.1]
[1731842450701,0.005,90802.0,90795.0,0.1]
[1731842450931,0.110133,90799.0,90795.0,0.1]
[1731842451374,0.220254,90804.0,90795.0,0.1]
[1731842451375,0.005,90804.0,90795.0,0.1]
[1731842452262,0.005,90804.0,90797.0,0.110135]
[1731842452692,0.225255,90804.0,90795.0,0.1]
[1731842452913,0.005,90799.0,90795.0,0.1]
[1731842453142,0.107131,90801.0,90795.0,0.1]
[1731842453354,0.10906255,90803.0,90795.0,0.1]
[1731842453800,0.10906255,90803.0,90797.0,0.110135]
[1731842454463,0.005,90806.0,90798.0,0.0022026]
[1731842454678,0.005,90806.0,90796.0,0.330411]
[1731842454911,0.0808,90812.0,90797.0,0.16550902]
[1731842455112,0.0808,90812.0,90811.0,0.110118]
[1731842455530,0.0808,90812.0,90811.0,0.11376053]
[1731842456040,0.086,90819.0,90812.0,0.220235]
[1731842456293,0.10906255,90818.0,90811.0,0.00364253]
[1731842456516,0.10906255,90818.0,90813.0,0.00362101]
[1731842456735,0.10906255,90818.0,90802.0,0.1]
[1731842456736,0.0452,90816.0,90802.0,0.1]
[1731842456964,0.10906255,90815.0,90814.0,0.00366744]
[1731842457190,0.10906255,90815.0,90805.0,0.16550902]
[1731842457405,0.10906255,90815.0,90806.0,0.003655]
[1731842457910,0.005,90807.0,90806.0,0.003655]
[1731842458153,0.30518555,90807.0,90806.0,0.003655]
[1731842458355,0.30518555,90807.0,90782.0,0.03566688]
[1731842458356,0.115137,90796.0,90782.0,0.03566688]
[1731842458567,0.30519955,90796.0,90784.0,0.021647]
[1731842458786,0.30519955,90796.0,90782.0,0.14581988]
[1731842458787,0.29349955,90796.0,90795.0,0.10537721]
[1731842459016,0.29349955,90796.0,90795.0,0.1017112]
[1731842459896,0.29349955,90796.0,90795.0,0.0967112]
[1731842460338,0.28849955,90796.0,90795.0,0.0967112]
[1731842460567,0.19506255,90796.0,90795.0,0.0967112]
[1731842460791,0.30519955,90796.0,90795.0,0.0967112]
[1731842461002,0.30519955,90796.0,90795.0,0.10037721]
[1731842461220,0.30519955,90796.0,90795.0,0.0967112]
[1731842461431,0.19506255,90796.0,90795.0,0.0967112]
[1731842461634,0.086,90796.0,90795.0,0.0967112]
[1731842461844,0.16550902,90806.0,90795.0,0.10037721]
[1731842461845,0.081,90803.0,90795.0,0.10037721]
[1731842462093,0.005,90798.0,90795.0,0.10037721]
[1731842462301,0.005,90802.0,90795.0,0.10037721]
[1731842462526,0.19006255,90803.0,90797.0,0.110135]
[1731842462527,0.005,90798.0,90797.0,0.110135]
[1731842462964,0.005,90798.0,90797.0,0.11386973]
[1731842463180,0.22419655,90798.0,90797.0,0.00373473]
[1731842463399,0.24719655,90798.0,90797.0,0.00373473]
[1731842463606,0.005,90796.0,90795.0,0.0967112]
[1731842463824,0.10906255,90796.0,90795.0,0.0967112]
[1731842464005,0.11406255,90796.0,90795.0,0.0967112]
[1731842464296,0.11406255,90796.0,90795.0,0.10038922]
[1731842464913,0.005,90796.0,90795.0,0.21052722]
[1731842465542,0.005,90796.0,90795.0,0.43080322]
[1731842465988,0.005,90805.0,90803.0,0.110128]
[1731842466201,0.005,90805.0,90795.0,0.10038922]
[1731842466202,0.10906255,90804.0,90797.0,0.22027]
[1731842466414,0.10906255,90804.0,90798.0,0.00368451]
[1731842466638,0.005,90805.0,90798.0,0.00368451]
[1731842466845,0.005,90814.0,90795.0,0.0967112]
[1731842467056,0.0452,90819.0,90795.0,0.0967112]
[1731842467057,0.10906255,90813.0,90799.0,0.00368451]
[1731842467309,0.005,90812.0,90807.0,0.110123]
[1731842467512,0.11406255,90811.0,90806.0,0.110124]
[1731842467725,0.10906255,90811.0,90806.0,0.110124]
[1731842467932,0.10606255,90811.0,90807.0,0.11380392]
[1731842468179,0.10606255,90811.0,90807.0,0.00368192]
[1731842468514,0.10606255,90811.0,90806.0,0.110124]
[1731842468722,0.10606255,90811.0,90808.0,0.00368287]
[1731842468928,0.10606255,90811.0,90809.0,0.11012]
[1731842469129,0.10606255,90811.0,90809.0,0.0036699]
[1731842469330,0.11012,90810.0,90803.0,0.110128]
[1731842469552,0.10606255,90811.0,90803.0,0.110128]
[1731842469553,0.10606255,90811.0,90804.0,0.0036649]
[1731842469736,0.110122,90808.0,90804.0,0.0036649]
[1731842469949,0.32630155,90811.0,90794.0,0.2219884]
[1731842469950,0.10906255,90807.0,90794.0,0.2219884]
[1731842470167,0.005,90801.0,90800.0,0.0017112]
[1731842470386,0.22419255,90801.0,90800.0,0.0017112]
[1731842473250,0.11406255,90801.0,90800.0,0.0017112]
[1731842473457,0.22419255,90801.0,90800.0,0.0017112]
[1731842473854,0.22419255,90801.0,90800.0,0.9444112]
[1731842474054,0.11406255,90801.0,90800.0,0.9444112]
[1731842474276,0.11406255,90801.0,90800.0,0.94814274]
[1731842475178,0.24719255,90801.0,90800.0,0.94814274]
[1731842476993,0.22419255,90801.0,90800.0,0.94814274]
[1731842477432,0.11406255,90801.0,90800.0,0.94814274]
[1731842477863,0.22419255,90801.0,90800.0,0.94814274]
[1731842478081,0.1262,90802.0,90800.0,0.94814274]
[1731842478082,0.081,90802.0,90800.0,1.05827474]
[1731842478304,0.19682613,90813.0,90805.0,0.110125]
[1731842478305,0.0858,90809.0,90805.0,0.110125]
[1731842478547,0.10906255,90808.0,90802.0,0.440518]
[1731842478783,0.11406255,90808.0,90807.0,0.110123]
[1731842479016,0.11406255,90808.0,90807.0,0.11381526]
[1731842479237,0.10906255,90808.0,90807.0,0.11381526]
[1731842480625,0.11406255,90808.0,90807.0,0.11381526]
[1731842481056,0.10906255,90808.0,90807.0,0.11381526]
[1731842482565,0.028,90816.0,90812.0,0.110117]
[1731842482768,0.11406255,90815.0,90813.0,0.00369355]
[1731842482996,0.11406255,90815.0,90788.0,0.1484022]
[1731842482997,0.005,90814.0,90800.0,0.2219742]
[1731842483219,0.110121,90809.0,90801.0,0.16921684]
[1731842483472,0.0008555,90811.0,90801.0,0.16921684]
[1731842483473,0.005,90807.0,90801.0,0.16921684]
[1731842483672,0.0008555,90811.0,90806.0,0.110124]
[1731842483673,0.10906255,90810.0,90806.0,0.110124]
[1731842483887,0.005,90807.0,90803.0,0.220257]
[1731842484102,0.005,90807.0,90806.0,0.110124]
[1731842485183,0.005,90807.0,90804.0,0.220254]
[1731842485184,0.10906255,90810.0,90805.0,0.220252]
[1731842485521,0.10906255,90810.0,90800.0,0.0017112]
[1731842485941,0.10906255,90810.0,90809.0,0.110121]
[1731842486141,0.0058555,90811.0,90810.0,0.11012]
[1731842486142,0.0008555,90811.0,90810.0,0.11012]
[1731842487037,0.0008555,90811.0,90810.0,0.11381226]
[1731842489903,0.0002022,90811.0,90810.0,0.11381226]
[1731842493115,0.0002022,90811.0,90810.0,0.13641126]
[1731842493335,0.0002022,90811.0,90810.0,0.23141126]
[1731842497954,0.0780022,90824.0,90810.0,0.12129126]
[1731842498162,0.18706475,90824.0,90811.0,0.220237]
[1731842498582,0.16550902,90818.0,90816.0,0.110112]
[1731842498867,0.21916655,90823.0,90816.0,0.110112]
[1731842499063,0.21916655,90823.0,90814.0,0.22023]
[1731842499064,0.21916655,90823.0,90817.0,0.00364107]
[1731842499294,0.21916655,90823.0,90817.0,0.11375207]
[1731842499516,0.21916655,90823.0,90810.0,0.337838]
[1731842499517,0.110106,90821.0,90815.0,0.110113]
[1731842499733,0.21917055,90820.0,90818.0,0.00368012]
[1731842499958,0.10906255,90820.0,90811.0,0.38574602]
[1731842500399,0.10906255,90820.0,90815.0,0.110113]
[1731842500400,0.21916955,90820.0,90815.0,0.110113]
[1731842500607,0.11011,90818.0,90812.0,0.00364637]
[1731842500825,0.10906255,90820.0,90816.0,0.00365025]
[1731842500826,0.110111,90817.0,90816.0,0.00365025]
[1731842501044,0.10906255,90820.0,90810.0,0.117599]
[1731842501271,0.110109,90819.0,90811.0,0.220237]
[1731842501478,0.21917155,90819.0,90812.0,0.220235]
[1731842501684,0.10906255,90819.0,90816.0,0.110112]
[1731842502107,0.10906255,90819.0,90817.0,0.00364053]
[1731842504235,0.10906255,90819.0,90814.0,0.110114]
[1731842504449,0.10906255,90819.0,90818.0,0.00363983]
[1731842505133,0.10906255,90819.0,90816.0,0.110112]
[1731842505344,0.10906255,90819.0,90818.0,0.00363983]
[1731842505572,0.10906255,90819.0,90817.0,0.00364112]
[1731842505815,0.10906255,90819.0,90818.0,0.00363983]
[1731842506020,0.10991805,90819.0,90818.0,0.00363983]
[1731842506728,0.10991805,90819.0,90816.0,0.110112]
[1731842506935,0.10991805,90819.0,90818.0,0.00363983]
[1731842507141,0.10991805,90819.0,90816.0,0.110112]
[1731842507385,0.10991805,90819.0,90818.0,0.00363983]
[1731842507643,0.10991805,90819.0,90817.0,0.00364112]
[1731842507854,0.10991805,90819.0,90810.0,0.11931]
[1731842507855,0.110115,90814.0,90810.0,0.11931]
[1731842508080,0.21917955,90813.0,90810.0,0.11931]
[1731842508337,0.10906255,90813.0,90810.0,0.11931]
[1731842508541,0.110117,90812.0,90810.0,0.11931]
[1731842508748,0.10906255,90813.0,90810.0,0.11931]
[1731842509594,0.10906255,90813.0,90810.0,0.229429]
[1731842509798,0.21917855,90813.0,90810.0,0.11931]
[1731842510020,0.10906255,90813.0,90810.0,0.11931]
[1731842510887,0.10906255,90813.0,90812.0,0.110117]
[1731842512233,0.0008555,90819.0,90810.0,0.339549]
[1731842512447,0.10906255,90818.0,90812.0,0.220235]
[1731842512681,0.0008555,90819.0,90815.0,0.110112]
[1731842512882,0.10191805,90819.0,90812.0,0.220235]
[1731842513198,0.10191805,90819.0,90817.0,0.110111]
[1731842513582,0.0780022,90824.0,90815.0,0.220227]
[1731842513836,0.0017118,90835.0,90819.0,0.110108]
[1731842513837,0.10906255,90823.0,90819.0,0.110108]
[1731842514037,0.10906255,90823.0,90817.0,0.220222]
[1731842514253,0.10906255,90823.0,90819.0,0.110108]
[1731842514687,0.10906255,90823.0,90822.0,0.110105]
[1731842514892,0.126,90832.0,90812.0,0.220233]
[1731842515061,0.10906255,90831.0,90825.0,0.110101]